bitfinex-derivatives/quotes_ETHF0:USTF0_20250726
["timestamp","ask_amount","ask_price","bid_price","bid_amount"]
[1753509246039,2.50897601,3751.3,3751.2,10.863]
[1753509246842,1.748,3751.1,3750.9,3.74086]
[1753509247144,1.748,3751.1,3751.0,11.1724]
[1753509247442,2.50917723,3751.1,3751.0,11.70546]
[1753509247643,2.50917723,3751.1,3751.0,11.1724]
[1753509247843,2.50917723,3751.1,3751.0,11.70546]
[1753509248946,2.50917723,3751.1,3751.0,14.91326]
[1753509249248,1.748,3751.1,3751.0,15.66236]
[1753509249449,2.50947769,3751.1,3751.0,15.86116]
[1753509250150,1.748,3751.1,3751.0,15.86116]
[1753509250350,1.748,3751.1,3751.0,16.37056]
[1753509251348,1.748,3751.1,3751.0,13.16276]
[1753509256051,1.748,3751.1,3751.0,11.39606]
[1753509256452,1.748,3751.1,3751.0,11.70546]
[1753509257153,1.748,3751.1,3751.0,12.19156]
[1753509257351,1.748,3751.1,3751.0,12.95716]
[1753509257549,1.748,3751.1,3751.0,13.16276]
[1753509258150,1.748,3751.1,3751.0,2.29976]
[1753509258353,1.748,3751.1,3751.0,10.859]
[1753509259348,1.0121,3751.1,3750.8,0.53308]
[1753509259654,0.7177,3751.0,3750.9,11.1684]
[1753509259855,1.748,3751.0,3750.9,11.1684]
[1753509260454,1.748,3751.0,3750.9,11.70147]
[1753509262651,1.748,3751.0,3750.9,11.39207]
[1753509263052,1.748,3751.0,3750.9,11.1684]
[1753509263252,2.28106,3751.0,3750.7,1.2822]
[1753509263454,1.748,3750.9,3750.8,11.70049]
[1753509263658,1.748,3750.9,3750.8,13.15779]
[1753509265253,1.748,3750.9,3750.8,12.6247]
[1753509266262,0.4051,3751.1,3751.0,1.79036]
[1753509266556,0.7177,3751.1,3751.0,1.7667]
[1753509266858,1.748,3751.1,3751.0,2.29976]
[1753509267555,1.748,3751.1,3751.0,1.7667]
[1753509267759,1.748,3751.1,3751.0,2.29976]
[1753509268061,3.2078,3751.2,3751.1,2.29974]
[1753509268255,3.97079271,3751.2,3751.1,1.7667]
[1753509268462,3.97079271,3751.2,3751.1,2.29974]
[1753509268659,4.41809271,3751.2,3751.1,2.29974]
[1753509268866,4.71249271,3751.2,3751.1,1.7667]
[1753509269460,4.71249271,3751.2,3751.1,2.29974]
[1753509269956,4.91739271,3751.2,3751.1,1.7667]
[1753509270361,4.91739271,3751.2,3751.1,2.29974]
[1753509270561,4.91739271,3751.2,3751.1,1.7667]
[1753509271659,5.71379271,3751.2,3751.1,1.7667]
[1753509273060,5.71379271,3751.2,3751.1,2.29974]
[1753509273361,5.71379271,3751.2,3751.1,1.7667]
[1753509273864,2.50599271,3751.2,3751.1,2.29974]
[1753509274360,2.48579271,3751.2,3751.1,0.3094]
[1753509274563,1.7228,3751.1,3751.0,0.3095]
[1753509274767,2.48579271,3751.1,3751.0,0.84256]
[1753509274960,2.48579271,3751.1,3751.0,0.3095]
[1753509275160,2.48579271,3751.1,3751.0,1.0617]
[1753509275459,2.48579271,3751.1,3751.0,1.79316]
[1753509276566,2.48579271,3751.1,3751.0,2.30906]
[1753509276866,0.76299271,3751.1,3751.0,2.30906]
[1753509277067,0.4254,3751.5,3751.4,0.533]
[1753509277262,1.48233914,3751.5,3751.4,2.309]
[1753509277561,0.76373914,3751.5,3751.4,3.03828707]
[1753509277869,3.9264,3751.7,3751.6,2.30897]
[1753509278066,4.59755436,3751.7,3751.6,2.30897]
[1753509278268,3.97155436,3751.7,3751.6,2.30897]
[1753509278564,5.40155436,3751.7,3751.6,2.30897]
[1753509278764,2.19375436,3751.7,3751.6,2.30897]
[1753509287768,2.19361596,3751.7,3751.6,2.30897]
[1753509290172,0.76361596,3751.7,3751.6,2.30897]
[1753509291772,2.19361596,3751.7,3751.6,2.30897]
[1753509293873,0.76361596,3751.7,3751.6,2.30897]
[1753509294768,0.9186,3751.9,3751.8,0.53294]
[1753509295074,2.39334071,3751.9,3751.8,2.30894]
[1753509296369,2.68614071,3751.9,3751.8,2.30894]
[1753509297270,0.96334071,3751.9,3751.8,2.30894]
[1753509297574,0.2,3751.9,3751.8,2.30894]
[1753509300972,1.6355,3751.9,3751.8,13.18794]
[1753509301171,1.9472,3751.9,3751.8,13.18794]
[1753509301873,1.9472,3751.9,3751.8,11.1875]
[1753509302080,1.9472,3751.9,3751.8,12.63124]
[1753509302678,1.9472,3751.9,3751.8,12.0983]
[1753509302980,1.9472,3751.9,3751.8,0.7926]
[1753509303281,1.9472,3751.9,3751.8,0.4998]
[1753509303478,1.9472,3751.9,3751.7,10.879]
[1753509303681,1.7472,3751.8,3751.7,11.69435]
[1753509303871,1.7472,3751.8,3751.3,23.76028707]
[1753509303872,1.7472,3751.5,3751.4,0.8154]
[1753509304180,1.7472,3751.5,3751.4,0.533]
[1753509306677,1.0533,3751.4,3751.3,0.81542]
[1753509306979,1.7472,3751.4,3751.3,0.81542]
[1753509307977,1.7472,3751.4,3751.3,1.00572]
[1753509308183,1.7472,3751.4,3751.3,1.72622]
[1753509309182,1.7472,3751.4,3751.3,2.03662]
[1753509309882,1.7472,3751.4,3751.3,1.5036]
[1753509311783,1.0533,3751.3,3751.1,0.2824]
[1753509312089,1.7472,3751.2,3751.1,0.2824]
[1753509312583,2.51040937,3751.2,3751.1,0.5752]
[1753509312885,2.51040937,3751.2,3751.1,1.0029]
[1753509313086,2.51040937,3751.2,3751.1,1.72624]
[1753509313287,1.7472,3751.2,3751.1,1.72624]
[1753509313786,1.7472,3751.2,3751.1,2.23704]
[1753509314287,1.7472,3751.2,3751.1,1.95464]
[1753509314488,1.7472,3751.2,3751.1,2.23704]
[1753509314785,1.4355,3751.2,3751.1,2.23704]
[1753509319288,1.7472,3751.2,3751.1,2.23704]
[1753509322785,1.7472,3751.2,3751.1,1.60894]
[1753509323284,1.22694,3751.2,3751.0,0.53306]
[1753509323490,1.7472,3751.1,3751.0,0.81546]
[1753509324293,1.7472,3751.1,3751.0,1.53596]
[1753509324489,0.4893,3750.9,3750.8,0.81548]
[1753509324793,1.7472,3750.9,3750.8,0.81549]
[1753509325193,1.7472,3750.9,3750.8,1.53599]
[1753509325394,1.7472,3750.9,3750.8,2.23709]
[1753509325891,1.7472,3750.9,3750.8,1.49899]
[1753509326095,0.6939,3750.6,3750.5,0.9835]
[1753509326392,1.7472,3750.6,3750.5,1.51663]
[1753509326594,1.7472,3750.6,3750.5,2.23713]
[1753509328688,1.4355,3750.6,3750.5,2.23713]
[1753509330796,1.4355,3750.6,3750.5,1.704]
[1753509332698,1.741,3750.6,3750.5,1.704]
[1753509333494,2.27411,3750.6,3750.5,0.7831]
[1753509333696,2.27411,3750.6,3750.5,1.7189]
[1753509334386,1.741,3750.6,3750.5,1.7189]
[1753509336296,1.741,3750.6,3750.5,2.25203]
[1753509341702,1.741,3750.6,3750.5,1.7189]
[1753509343401,2.50391886,3750.6,3750.5,1.7189]
[1753509343604,1.741,3750.6,3750.5,1.7189]
[1753509343806,2.50391272,3750.6,3750.5,1.7189]
[1753509344308,3.03702272,3750.6,3750.5,1.7189]
[1753509344503,2.50391272,3750.6,3750.5,1.7189]
[1753509345907,3.03702272,3750.6,3750.5,1.7189]
[1753509346313,0.53315,3750.4,3750.3,0.3005]
[1753509346498,0.7057,3750.4,3750.3,0.81766]
[1753509346805,0.7057,3750.4,3750.3,1.96626]
[1753509347004,1.7177,3750.4,3750.3,2.26676]
[1753509347808,1.4122,3750.4,3750.3,2.26676]
[1753509348209,0.4242,3750.8,3750.6,1.0319]
[1753509348407,0.4242,3750.8,3750.7,2.2667]
[1753509348808,1.18721649,3750.8,3750.7,2.2667]
[1753509350298,0.76301649,3750.8,3750.7,2.2667]
[1753509350913,3.2078,3751.0,3750.9,1.23477]
[1753509351110,4.67749329,3751.0,3750.9,1.7336]
[1753509351609,5.07519329,3751.0,3750.9,1.7336]
[1753509351808,6.22175329,3751.0,3750.9,1.7336]
[1753509352500,5.68869329,3751.0,3750.9,1.7336]
[1753509352905,6.22175329,3751.0,3750.9,1.7336]
[1753509353111,5.68869329,3751.0,3750.9,1.7336]
[1753509354000,5.68869329,3751.0,3750.9,2.26667]
[1753509357013,2.48089329,3751.0,3750.9,2.26667]
[1753509359315,2.48089329,3751.0,3750.9,1.7336]
[1753509359706,5.68869329,3751.0,3750.9,1.7336]
[1753509360010,2.48089329,3751.0,3750.9,1.7336]
[1753509360210,5.68869329,3751.0,3750.9,1.7336]
[1753509360410,2.48089329,3751.0,3750.9,2.26667]
[1753509360617,3.01395329,3751.0,3750.9,1.7336]
[1753509361618,0.76319329,3751.0,3750.9,2.26667]
[1753509362115,1.1421,3751.3,3751.2,2.25803]
[1753509362310,1.90583165,3751.3,3751.2,2.25803]
[1753509362811,2.50573165,3751.3,3751.2,1.725]
[1753509363017,3.03875165,3751.3,3751.2,1.725]
[1753509366704,3.03875165,3751.3,3751.2,0.2966]
[1753509366705,3.76803872,3751.3,3751.2,0.2966]
[1753509367615,3.03875165,3751.3,3751.2,0.2966]
[1753509368517,6.24655165,3751.3,3751.2,0.2966]
[1753509369322,2.27504,3751.1,3751.0,0.2825]
[1753509369512,1.52327,3750.9,3750.8,1.4284]
[1753509369717,3.03880165,3750.9,3750.8,1.4284]
[1753509369921,3.03880165,3750.9,3750.8,1.725]
[1753509371123,6.24660165,3750.9,3750.8,1.725]
[1753509371618,6.24660165,3750.9,3750.8,0.2966]
[1753509372418,6.24660165,3750.9,3750.8,1.725]
[1753509374926,6.24660165,3750.9,3750.8,0.5046]
[1753509375325,6.24660165,3750.9,3750.8,1.5202]
[1753509375527,6.24660165,3750.9,3750.8,1.725]
[1753509377437,5.48287,3750.9,3750.8,1.725]
[1753509377732,6.24273299,3750.9,3750.8,1.725]
[1753509378230,5.93583299,3750.9,3750.8,1.725]
[1753509380224,2.72803299,3750.9,3750.8,1.725]
[1753509380424,5.93583299,3750.9,3750.8,1.725]
[1753509384329,6.24273299,3750.9,3750.8,1.725]
[1753509385131,3.03493299,3750.9,3750.8,1.725]
[1753509386227,2.72803299,3750.9,3750.8,1.725]
[1753509388437,6.24273299,3750.9,3750.8,1.725]
[1753509389528,3.03493299,3750.9,3750.8,1.725]
[1753509390837,6.24273299,3750.9,3750.8,1.725]
[1753509391437,5.93583299,3750.9,3750.8,1.725]
[1753509396239,6.24623299,3750.9,3750.8,1.725]
[1753509398443,3.03843299,3750.9,3750.8,1.725]
[1753509400347,2.72803299,3750.9,3750.8,1.725]
[1753509402352,3.03843299,3750.9,3750.8,1.725]
[1753509404848,2.72803299,3750.9,3750.8,1.725]
[1753509405649,0.75986299,3750.9,3750.8,2.25809]
[1753509406038,1.29293299,3750.9,3750.8,1.725]
[1753509406653,2.00473299,3750.9,3750.8,1.725]
[1753509407652,2.20493299,3750.9,3750.8,1.725]
[1753509408548,1.86126299,3750.9,3750.8,1.725]
[1753509409348,2.39433299,3750.9,3750.8,1.725]
[1753509411256,1.86126299,3750.9,3750.8,1.725]
[1753509411755,2.39433299,3750.9,3750.8,1.725]
[1753509412060,2.99493299,3750.9,3750.8,1.725]
[1753509412454,6.20273299,3750.9,3750.8,1.725]
[1753509413558,2.99493299,3750.9,3750.8,1.725]
[1753509414359,2.68453299,3750.9,3750.8,1.725]
[1753509414560,2.15146299,3750.9,3750.8,2.25809]
[1753509414761,2.68453299,3750.9,3750.8,1.725]
[1753509415363,2.99493299,3750.9,3750.8,1.725]
[1753509425171,2.68453299,3750.9,3750.8,1.725]
[1753509425872,2.39433299,3750.9,3750.8,1.725]
[1753509431075,2.68953299,3750.9,3750.8,1.725]
[1753509433474,2.98033299,3750.9,3750.8,1.725]
[1753509433675,2.22047,3750.9,3750.8,1.725]
[1753509433875,2.98093173,3750.9,3750.8,1.725]
[1753509439781,2.69013173,3750.9,3750.8,1.725]
[1753509449690,2.98213173,3750.9,3750.8,1.725]
[1753509452894,2.22167,3750.9,3750.8,1.725]
[1753509453095,2.22167,3750.9,3750.8,2.25809]
[1753509453289,2.98244644,3750.9,3750.8,2.25809]
[1753509454194,2.69044644,3750.9,3750.8,2.25809]
[1753509454989,2.69044644,3750.9,3750.8,1.725]
[1753509456297,2.69048095,3750.9,3750.8,1.725]
[1753509459595,0.76081095,3750.9,3750.8,2.80403584]
[1753509466998,1.4534,3751.2,3751.1,1.21304]
[1753509467300,2.21343867,3751.2,3751.1,2.80568584]
[1753509467901,2.50543867,3751.2,3751.1,2.80568584]
[1753509468798,2.50543867,3751.2,3750.6,3.2078]
[1753509468799,1.76583867,3751.2,3750.6,3.2078]
[1753509468998,1.147,3750.8,3750.7,2.27264584]
[1753509469196,1.147,3750.8,3750.7,2.80574584]
[1753509469505,1.4534,3750.8,3750.7,2.80574584]
[1753509473709,2.82443584,3750.8,3750.7,0.2925]
[1753509473907,3.03842004,3750.8,3750.7,0.2925]
[1753509474506,3.03842004,3750.8,3750.7,0.5888]
[1753509474707,3.03842004,3750.8,3750.7,1.2356]
[1753509474908,3.03842004,3750.8,3750.7,1.5302]
[1753509475410,3.03842004,3750.8,3750.7,1.7267]
[1753509479011,2.74642004,3750.8,3750.7,1.7267]
[1753509479211,3.03842004,3750.8,3750.7,1.7267]
[1753509481607,3.03842004,3750.8,3750.0,0.54594584]
[1753509481608,2.27664,3750.4,3750.3,0.3065]
[1753509482906,3.03670064,3750.4,3750.3,0.3065]
[1753509484114,2.27667,3750.2,3750.1,1.049]
[1753509484414,3.03673064,3750.2,3750.1,0.3065]
[1753509486017,2.2767,3750.0,3749.9,0.3065]
[1753509486416,2.2767,3750.0,3749.9,0.6173]
[1753509486613,2.2767,3750.0,3749.9,0.8199]
[1753509486818,2.2767,3750.0,3749.9,1.5351]
[1753509487714,2.2767,3750.0,3749.7,0.53324]
[1753509487715,1.82933,3749.8,3749.7,0.7382]
[1753509487913,2.27673,3749.8,3749.7,0.3065]
[1753509488216,2.27673,3749.8,3747.9,3.33223771]
[1753509488217,2.2768,3749.4,3749.3,1.7424]
[1753509488810,1.7435,3749.4,3749.3,1.7424]
[1753509489509,1.4322,3749.4,3749.3,1.7424]
[1753509490317,1.96549,3749.4,3749.3,1.7424]
[1753509491312,1.4322,3749.4,3749.3,1.7424]
[1753509491713,1.96549,3749.4,3749.3,1.7424]
[1753509491914,2.27679,3749.4,3749.3,1.7424]
[1753509498223,1.7435,3749.4,3749.3,1.7424]
[1753509500015,1.7435,3749.4,3749.3,2.2757]
[1753509501824,1.7435,3749.4,3749.3,1.7424]
[1753509502125,2.27679,3749.4,3749.3,1.7424]
[1753509502624,1.7435,3749.4,3749.3,2.2757]
[1753509503018,2.27679,3749.4,3749.3,1.7424]
[1753509504621,2.27679,3749.4,3749.3,0.3065]
[1753509505125,2.27679,3749.4,3749.3,1.2516]
[1753509505624,2.27679,3749.4,3749.3,1.5351]
[1753509506128,2.27679,3749.4,3749.3,1.7424]
[1753509506819,2.27681,3749.2,3749.1,0.7425]
[1753509507121,2.27684,3749.0,3748.9,1.96925]
[1753509507625,2.27684,3749.0,3748.9,1.7424]
[1753509514232,3.03728582,3749.0,3748.9,1.7424]
[1753509514431,3.03728582,3749.0,3748.9,2.27576]
[1753509514930,3.03728582,3749.0,3748.9,1.7424]
[1753509517332,3.30763575,3749.0,3748.9,1.7424]
[1753509517531,2.77429575,3749.0,3748.9,2.27576]
[1753509518031,2.50394582,3749.0,3748.9,2.27576]
[1753509518233,2.77433511,3749.0,3748.9,2.27576]
[1753509519233,2.50394582,3749.0,3748.9,2.27576]
[1753509520223,3.03728582,3749.0,3748.9,1.7424]
[1753509521130,3.30432192,3749.0,3748.9,1.7424]
[1753509524636,3.30432192,3749.0,3748.9,2.27576]
[1753509524837,2.45968192,3749.0,3748.9,2.27576]
[1753509525035,0.2670361,3749.0,3748.9,2.27576]
[1753509525239,1.4396057,3749.6,3749.0,1.21884]
[1753509525436,1.4396057,3749.6,3749.5,2.80870963]
[1753509525732,5.64023,3749.8,3749.6,0.53326]
[1753509525938,5.4205,3749.8,3749.7,1.729]
[1753509526138,6.18174239,3749.8,3749.7,1.729]
[1753509526437,4.659,3749.8,3749.7,2.26224]
[1753509527032,0.76123141,3749.8,3749.7,2.26224]
[1753509527227,0.26863141,3749.8,3749.7,2.26224]
[1753509527833,3.2078,3749.9,3749.8,0.92213]
[1753509528040,8.1803,3750.5,3750.4,0.265]
[1753509528333,3.989,3750.5,3750.4,0.6211]
[1753509528536,4.467,3750.5,3750.4,1.11164]
[1753509528743,4.467,3750.5,3750.4,0.5785]
[1753509529537,4.467,3750.5,3750.4,1.11164]
[1753509529837,4.467,3750.5,3750.4,0.5785]
[1753509530542,4.7736,3750.5,3750.4,0.5785]
[1753509531344,1.5658,3750.5,3750.4,0.5785]
[1753509532941,2.29083,3750.5,3750.4,0.5785]
[1753509533544,1.7577,3750.5,3750.4,0.5785]
[1753509534140,2.29083,3750.5,3750.4,0.5785]
[1753509538252,1.7577,3750.5,3750.4,0.5785]
[1753509538850,2.29083,3750.5,3750.4,0.5785]
[1753509542554,1.7577,3750.5,3750.4,0.5785]
[1753509542854,2.29083,3750.5,3750.4,0.5785]
[1753509548056,1.7577,3750.5,3750.4,0.5785]
[1753509552261,2.51213933,3750.5,3750.4,0.5785]
[1753509552863,2.51213933,3750.5,3750.4,1.11164]
[1753509554263,2.20553933,3750.5,3750.4,1.11164]
[1753509554565,1.06793933,3750.5,3750.4,1.15344]
[1753509555064,1.25813933,3750.5,3750.4,1.11164]
[1753509555363,1.99603933,3750.5,3750.4,1.31988274]
[1753509555566,1.99603933,3750.5,3750.4,1.11164]
[1753509555762,2.50083933,3750.5,3750.4,1.11164]
[1753509561056,2.19603933,3750.5,3750.4,1.11164]
[1753509561767,2.50083933,3750.5,3750.4,1.11164]
[1753509563768,2.50083933,3750.5,3750.4,1.04344]
[1753509564966,2.50083933,3750.5,3750.4,1.11034]
[1753509565760,2.50083933,3750.5,3750.4,1.04344]
[1753509573273,2.50083933,3750.5,3750.4,1.11104]
[1753509577976,2.50083933,3750.5,3750.4,1.04344]
[1753509578367,2.50083933,3750.5,3750.4,0.53314]
[1753509578565,2.50083933,3750.5,3750.4,1.02954]
[1753509580476,2.50298391,3750.5,3750.4,1.02954]
[1753509580977,0.6781,3750.2,3749.6,0.3009]
[1753509581278,1.68,3749.7,3749.6,1.09726]
[1753509581973,1.68,3749.7,3749.6,0.4964]
[1753509582174,2.43658545,3749.7,3749.6,0.4964]
[1753509582369,2.43658545,3749.7,3749.6,1.02966]
[1753509582675,1.68,3749.7,3749.6,1.02966]
[1753509583274,2.43627726,3749.7,3749.6,1.02966]
[1753509583474,2.43627726,3749.7,3749.6,1.09726]
[1753509584472,2.43627726,3749.7,3749.6,1.02966]
[1753509584676,2.43627726,3749.7,3749.6,0.4964]
[1753509584874,2.43627726,3749.7,3749.6,1.02966]
[1753509585876,1.68,3749.7,3749.6,1.02966]
[1753509586378,1.68,3749.7,3749.6,1.09726]
[1753509588084,1.68,3749.7,3749.6,1.02966]
[1753509590586,1.68,3749.7,3749.6,1.09726]
[1753509592794,1.0019,3749.5,3749.3,0.3009]
[1753509592988,5.992,3750.1,3749.3,0.3009]
[1753509592989,1.68,3749.4,3749.3,0.564]
[1753509593288,1.68,3749.4,3749.3,1.0973]
[1753509593585,0.2887,3749.4,3749.3,1.1396]
[1753509594793,3.2078,3749.8,3749.1,0.94150236]
[1753509594794,0.9642,3749.8,3749.7,1.09724]
[1753509594991,1.71948913,3749.8,3749.7,1.09724]
[1753509595391,2.43528913,3749.8,3749.7,1.09724]
[1753509597488,0.4856,3749.2,3749.1,0.3685]
[1753509597688,1.68,3749.2,3749.1,0.79643]
[1753509597990,1.68,3749.2,3749.1,1.09733]
[1753509600688,1.2014,3749.2,3749.1,1.09733]
[1753509601392,1.2014,3749.2,3749.1,1.14013]
[1753509602194,1.2014,3749.2,3749.1,1.09733]
[1753509605989,0.53321,3750.0,3749.0,10.865]
[1753509605990,0.304,3749.7,3749.4,0.6116]
[1753509606289,0.9299,3749.7,3749.6,1.87323124]
[1753509606490,0.7997,3749.7,3749.6,1.87323124]
[1753509606896,0.4973,3749.7,3749.6,1.87323124]
[1753509607699,0.3045,3749.7,3749.6,1.87323124]
[1753509608196,0.3045,3749.7,3749.6,6.87323124]
[1753509608397,1.1205,3750.2,3750.1,0.79658]
[1753509608587,1.4245,3750.2,3750.1,1.10198]
[1753509608900,1.729,3750.2,3750.1,1.10198]
[1753509609399,1.729,3750.2,3750.1,1.03348]
[1753509616002,3.2078,3750.2,3749.7,0.3054]
[1753509616198,1.0432,3749.7,3749.5,0.3054]
[1753509616408,3.2078,3750.2,3749.5,0.53327]
[1753509616409,1.729,3749.6,3749.5,0.53327]
[1753509616702,0.6858,3749.5,3749.4,0.3054]
[1753509616896,1.729,3749.5,3749.4,0.83868]
[1753509617093,1.729,3749.5,3749.4,1.03358]
[1753509617699,1.729,3749.5,3749.4,0.5003]
[1753509617900,1.729,3749.5,3749.4,1.03358]
[1753509618903,1.729,3749.5,3749.4,1.10158]
[1753509623006,1.729,3749.5,3749.4,1.03358]
[1753509623705,1.729,3749.5,3749.4,1.10158]
[1753509623912,1.2344,3749.5,3749.4,1.10158]
[1753509624103,1.2344,3749.5,3749.4,1.82995124]
[1753509624709,0.7997,3749.5,3749.4,1.82995124]
[1753509624911,0.3045,3749.5,3749.4,1.87245124]
[1753509626011,1.5384,3750.0,3749.9,1.10151]
[1753509626207,2.48448142,3750.0,3749.9,1.10151]
[1753509627207,1.2344,3750.0,3749.9,1.10151]
[1753509628100,1.5384,3750.0,3749.9,1.10151]
[1753509629212,1.729,3750.0,3749.9,1.10151]
[1753509629612,2.48457373,3750.0,3749.9,1.10151]
[1753509632613,0.6873,3749.7,3749.6,0.5124]
[1753509632910,5.37436608,3750.6,3749.6,0.5799]
[1753509633117,1.2372,3750.0,3749.9,4.32091]
[1753509633415,1.99292553,3750.0,3749.9,1.11311]
[1753509633618,2.29822553,3750.0,3749.9,1.11311]
[1753509633814,1.99292553,3750.0,3749.9,1.11311]
[1753509634014,1.54662553,3750.0,3749.9,1.15531]
[1753509634217,1.54662553,3750.0,3749.9,1.11311]
[1753509634413,1.99292553,3750.0,3749.9,1.84148124]
[1753509635017,0.3047,3750.0,3749.9,5.09148124]
[1753509641522,0.751,3750.0,3749.9,5.09148124]
[1753509641719,1.7436,3750.0,3749.9,4.32091]
[1753509642017,1.7436,3750.0,3749.9,1.11311]
[1753509642719,1.7436,3750.0,3749.9,4.32091]
[1753509648741,0.61,3750.8,3749.9,3.78321]
[1753509648940,1.44336082,3750.7,3750.6,1.04551]
[1753509649243,1.74806082,3750.7,3750.6,1.11301]
[1753509649446,2.49966082,3750.7,3750.6,1.11301]
[1753509650041,1.7436,3750.7,3750.6,1.84138124]
[1753509650448,1.2372,3750.7,3750.6,1.88358124]
[1753509650747,1.5425,3750.7,3750.6,1.84138124]
[1753509653252,1.2372,3750.7,3750.6,1.84138124]
[1753509653750,0.5069,3750.7,3750.6,1.15521]
[1753509656848,0.9532,3750.7,3750.6,1.11301]
[1753509657552,1.2372,3750.7,3750.6,1.11301]
[1753509660752,1.5432,3750.7,3750.6,1.11301]
[1753509661351,1.7416,3750.7,3750.6,1.11301]
[1753509664352,1.2372,3750.7,3750.6,1.11301]
[1753509664944,1.5432,3750.7,3750.6,1.11301]
[1753509665454,1.2372,3750.7,3750.6,1.11301]
[1753509666349,1.5432,3750.7,3750.6,1.11301]
[1753509667150,1.7416,3750.7,3750.6,1.11301]
[1753509667352,1.4356,3750.7,3750.6,1.11301]
[1753509668058,1.7416,3750.7,3750.6,1.11301]
[1753509669449,4.6664,3751.7,3751.6,0.53297]
[1753509669654,5.42257799,3751.7,3751.6,0.53297]
[1753509670154,2.21477799,3751.7,3751.6,1.21357]
[1753509670557,1.4586,3751.7,3751.6,1.21357]
[1753509670756,1.4586,3751.7,3751.6,1.42188042]
[1753509671451,1.7469,3751.7,3751.6,1.42188042]
[1753509673657,1.7469,3751.7,3751.6,1.21357]
[1753509673855,1.7469,3751.7,3751.6,0.53297]
[1753509674256,0.7013,3751.1,3751.0,3.4928]
[1753509674558,1.7469,3751.1,3751.0,4.1644]
[1753509674753,1.7469,3751.1,3751.0,3.74086]
[1753509678758,1.7469,3751.1,3751.0,0.53306]
[1753509680660,1.7469,3751.1,3750.8,0.285]
[1753509680961,1.7469,3751.0,3750.9,0.53306]
[1753509684166,1.7469,3751.0,3750.9,0.81806]
[1753509684965,1.7469,3751.0,3750.7,11.3528]
[1753509685163,1.4452,3750.9,3750.8,0.81808]
[1753509685363,1.7469,3750.9,3750.8,0.285]
[1753509685564,1.7469,3750.9,3750.8,0.81809]
[1753509686466,0.7013,3750.8,3750.7,10.887]
[1753509686768,2.27999,3750.8,3750.7,10.887]
[1753509687765,1.7469,3750.8,3750.7,10.887]
[1753509687967,1.7469,3750.8,3750.7,11.3778]
[1753509688170,1.7469,3750.8,3750.7,10.887]
[1753509689871,1.7469,3750.8,3750.7,11.7273]
[1753509690173,1.7469,3750.8,3750.7,11.1942]
[1753509690774,1.7469,3750.8,3750.7,12.8607]
[1753509691368,1.7469,3750.8,3750.7,12.3276]
[1753509691566,1.7469,3750.8,3750.7,12.6402]
[1753509692067,1.7469,3750.8,3750.7,13.1733]
[1753509692268,1.7469,3750.8,3750.7,12.6402]
[1753509693170,1.7469,3750.8,3750.7,13.1733]
[1753509693369,1.7469,3750.8,3750.7,12.6402]
[1753509697076,0.7523,3751.1,3751.0,1.21555]
[1753509697378,1.50839405,3751.1,3751.0,3.01702124]
[1753509697973,3.2078,3751.3,3751.2,1.21553]
[1753509698173,4.25055693,3751.3,3751.2,2.28863]
[1753509698675,0.4656,3751.5,3751.4,0.533]
[1753509698874,0.75601667,3751.5,3751.4,3.01697124]
[1753509699076,0.2867,3751.7,3751.6,1.21547]
[1753509699277,0.2867,3751.7,3751.6,2.28857]
[1753509699673,0.9916,3751.7,3751.6,0.53297]
[1753509699878,1.7623,3751.6,3751.5,0.9665]
[1753509700382,1.7623,3751.6,3751.5,0.5132]
[1753509700783,2.51818608,3751.6,3751.5,0.5132]
[1753509701281,2.51818608,3751.6,3751.5,1.04619]
[1753509701777,2.51818608,3751.6,3751.5,0.5132]
[1753509702179,2.51818608,3751.6,3751.3,11.6605]
[1753509702380,0.7049,3751.4,3751.3,11.6605]
[1753509702580,2.51835801,3751.4,3751.3,11.2072]
[1753509702981,2.51835801,3751.4,3751.3,10.9]
[1753509703286,1.7623,3751.3,3751.2,0.3072]
[1753509703487,2.51835801,3751.3,3751.2,0.3072]
[1753509703788,1.7623,3751.3,3751.2,0.84023]
[1753509704385,2.51857524,3751.3,3751.2,0.84023]
[1753509704585,1.0574,3751.2,3751.1,0.53304]
[1753509704890,1.7623,3751.0,3750.9,0.3072]
[1753509705082,0.7049,3750.8,3750.7,11.2092]
[1753509705284,2.51866465,3750.8,3750.7,11.2092]
[1753509705982,0.7707,3750.7,3750.5,1.29362]
[1753509706184,1.7623,3750.6,3750.5,1.29362]
[1753509706493,0.5104,3750.3,3750.2,0.3072]
[1753509706785,2.51865421,3750.3,3750.1,33.938]
[1753509706986,1.7623,3750.2,3750.1,10.903]
[1753509707991,1.7623,3750.2,3750.1,11.43618]
[1753509708283,1.7623,3750.2,3750.1,11.74338]
[1753509708484,1.7623,3750.2,3750.1,11.94938]
[1753509708685,1.7623,3750.2,3750.1,12.40268]
[1753509711385,1.7623,3750.2,3750.1,11.8695]
[1753509711584,0.7049,3750.0,3749.9,0.3072]
[1753509711786,1.7623,3750.0,3749.9,0.3072]
[1753509712191,1.7623,3750.0,3749.9,0.5132]
[1753509712488,2.2955,3750.0,3749.9,0.5132]
[1753509713691,2.2955,3750.0,3749.9,0.9665]
[1753509713889,1.7623,3750.0,3749.9,0.9665]
[1753509715696,1.7623,3750.0,3749.9,0.5132]
[1753509716387,1.7623,3750.0,3749.9,0.9665]
[1753509717594,1.7623,3750.0,3749.9,1.69191]
[1753509717900,1.7623,3750.0,3749.9,1.1587]
[1753509718395,1.7623,3750.0,3749.9,1.69191]
[1753509718998,1.7623,3750.0,3749.9,1.97621]